bitfinex-derivatives/quotes_BTCF0:USTF0_20250912
["timestamp","ask_amount","ask_price","bid_price","bid_amount"]
[1757688336267,0.01007907,114940.0,114930.0,1.1278132]
[1757688336874,0.01007907,114940.0,114930.0,0.3078932]
[1757688337071,0.01007907,114940.0,114930.0,1.4886132]
[1757688337273,0.01007907,114940.0,114930.0,1.5755922]
[1757688337472,0.01007907,114940.0,114930.0,1.4886132]
[1757688337975,0.01007907,114940.0,114930.0,0.6686932]
[1757688338175,0.01007907,114940.0,114930.0,1.4886132]
[1757688339072,0.01007907,114940.0,114930.0,1.3966804]
[1757688339676,0.01007907,114940.0,114930.0,0.5767604]
[1757688340274,0.01007907,114940.0,114930.0,0.41776711]
[1757688340471,0.01007907,114940.0,114930.0,1.3966404]
[1757688340877,0.01007907,114940.0,114930.0,1.4836195]
[1757688342474,0.01007907,114940.0,114930.0,1.32462621]
[1757688342674,0.38237,114950.0,114940.0,0.03566]
[1757688343074,0.38237,114950.0,114940.0,0.19465329]
[1757688343279,0.02157,114950.0,114940.0,0.19465329]
[1757688344282,0.02157,114950.0,114940.0,0.35464658]
[1757688344682,0.02157,114950.0,114940.0,0.35564658]
[1757688345582,0.02157,114950.0,114940.0,0.03766]
[1757688345784,0.02157,114950.0,114940.0,0.35564658]
[1757688346877,0.02157,114950.0,114940.0,0.37313053]
[1757688347876,0.38237,114960.0,114950.0,0.03566]
[1757688348077,0.38237,114960.0,114950.0,1.01453329]
[1757688349385,0.39598,114960.0,114950.0,0.19465329]
[1757688349587,0.39598,114960.0,114950.0,1.01449329]
[1757688349787,0.38237,114960.0,114950.0,1.01449329]
[1757688349981,0.63237,114960.0,114950.0,1.01449329]
[1757688350188,0.38237,114960.0,114950.0,1.01449329]
[1757688350483,0.02157,114960.0,114950.0,1.01449329]
[1757688350788,0.38237,114970.0,114960.0,0.03566]
[1757688351085,0.38237,114970.0,114960.0,0.19465329]
[1757688351674,0.02157,114970.0,114960.0,0.35364658]
[1757688351874,0.57494708,114980.0,114970.0,0.03566]
[1757688352078,0.56133708,114980.0,114970.0,0.85894]
[1757688352479,0.54136329,114980.0,114970.0,0.85894]
[1757688352684,0.38237,114980.0,114970.0,0.87625468]
[1757688352882,0.54136329,114980.0,114970.0,1.03524797]
[1757688353187,0.38237,114980.0,114970.0,1.03524797]
[1757688353685,0.38337,114980.0,114970.0,1.03524797]
[1757688354279,0.38337,114980.0,114970.0,1.03552797]
[1757688354479,0.38337,114980.0,114970.0,0.21196797]
[1757688354686,0.38337,114980.0,114970.0,1.03524797]
[1757688354887,0.38537,114980.0,114970.0,0.21196797]
[1757688355088,0.38537,114980.0,114970.0,1.03524797]
[1757688355282,0.38537,114980.0,114970.0,0.21196797]
[1757688355483,0.38537,114980.0,114970.0,0.05297468]
[1757688355689,0.38537,114980.0,114970.0,0.21196797]
[1757688355882,0.38537,114980.0,114970.0,1.03492797]
[1757688356082,0.54436329,114980.0,114970.0,1.03492797]
[1757688356391,0.54436329,114980.0,114970.0,0.05297468]
[1757688356590,0.54436329,114980.0,114970.0,0.21196797]
[1757688356794,0.54436329,114980.0,114970.0,0.05297468]
[1757688356983,0.38537,114980.0,114970.0,0.21196797]
[1757688357187,0.38537,114980.0,114970.0,1.03464797]
[1757688357387,0.38537,114980.0,114970.0,0.21196797]
[1757688357789,0.38537,114980.0,114970.0,1.03444797]
[1757688358995,0.38537,114980.0,114970.0,1.03420797]
[1757688359191,0.38537,114980.0,114970.0,1.03412797]
[1757688359396,0.38537,114980.0,114970.0,1.03392797]
[1757688361300,0.38537,114980.0,114970.0,0.87493468]
[1757688361507,0.38537,114980.0,114970.0,1.03392797]
[1757688362600,0.38537,114980.0,114970.0,0.21196797]
[1757688362801,0.38537,114980.0,114970.0,1.03284797]
[1757688362987,0.38537,114980.0,114970.0,0.21196797]
[1757688363194,0.39904,114980.0,114970.0,0.87369468]
[1757688363496,0.80803329,114980.0,114970.0,0.04009468]
[1757688363701,0.80803329,114980.0,114970.0,0.86081468]
[1757688363999,0.96702658,114980.0,114970.0,0.86089468]
[1757688364295,0.80803329,114980.0,114970.0,0.04009468]
[1757688366796,0.96702658,114980.0,114970.0,0.04009468]
[1757688366997,0.96702658,114980.0,114970.0,0.01731468]
[1757688367199,0.64904,114980.0,114970.0,0.01731468]
[1757688367497,0.96702658,114980.0,114970.0,0.03888468]
[1757688368903,0.64904,114980.0,114970.0,0.03888468]
[1757688369105,0.80803329,114980.0,114970.0,0.03888468]
[1757688369700,0.96702658,114980.0,114970.0,0.01731468]
[1757688372199,1.78682658,114980.0,114970.0,0.01731468]
[1757688372399,1.94567336,114980.0,114970.0,0.01731468]
[1757688372599,0.022,114950.0,114940.0,0.76048655]
[1757688372805,0.022,114950.0,114940.0,1.81870323]
[1757688373105,0.40310839,114960.0,114950.0,0.03445]
[1757688373305,0.40310839,114960.0,114950.0,0.27286668]
[1757688373306,0.64152507,114960.0,114950.0,0.27286668]
[1757688373505,0.04230839,114960.0,114950.0,0.03445]
[1757688373704,0.02030839,114960.0,114950.0,0.76128336]
[1757688373904,0.04230839,114960.0,114950.0,0.76128336]
[1757688374201,0.04230839,114960.0,114950.0,0.77002191]
[1757688374706,0.04230839,114960.0,114950.0,0.53160523]
[1757688376501,0.02030839,114960.0,114950.0,0.53160523]
[1757688376708,0.02030839,114960.0,114950.0,1.13082191]
[1757688377115,0.62121668,114970.0,114960.0,0.03445]
[1757688377405,0.64152984,114970.0,114960.0,0.51128336]
[1757688378302,0.40311316,114970.0,114960.0,1.33108336]
[1757688378501,0.64152984,114970.0,114960.0,1.33108336]
[1757688378904,0.64252984,114970.0,114960.0,1.33108336]
[1757688379209,0.04331316,114970.0,114960.0,1.34886035]
[1757688379405,0.02131316,114970.0,114960.0,1.95966035]
[1757688379907,0.02131316,114970.0,114960.0,2.28503363]
[1757688380305,0.02131316,114970.0,114960.0,2.04661695]
[1757688380499,0.002,114970.0,114960.0,2.02883996]
[1757688380807,0.002,114970.0,114960.0,2.26725664]
[1757688381714,0.002,114970.0,114960.0,1.23137327]
[1757688381915,0.002,114970.0,114960.0,2.06868828]
[1757688382907,0.002,114970.0,114960.0,2.15564478]
[1757688383209,0.002,114970.0,114960.0,2.22551938]
[1757688384709,0.002,114970.0,114960.0,2.13856288]
[1757688385506,0.002,114970.0,114960.0,2.13848288]
[1757688385810,0.002,114970.0,114960.0,1.31876288]
[1757688386008,0.002,114970.0,114960.0,2.13848288]
[1757688386707,0.002,114970.0,114960.0,1.31876288]
[1757688387010,0.002,114970.0,114960.0,2.13848288]
[1757688388214,0.002,114970.0,114960.0,1.06876288]
[1757688388506,0.002,114970.0,114960.0,1.30235961]
[1757688388712,0.002,114970.0,114960.0,1.77919297]
[1757688390615,0.002,114970.0,114960.0,1.86614947]
[1757688391417,0.002,114970.0,114960.0,2.10456615]
[1757688391809,0.002,114970.0,114960.0,2.21385606]
[1757688396119,0.002,114970.0,114960.0,2.10456615]
[1757688402326,0.002,114970.0,114960.0,2.10424615]
[1757688402828,0.002,114970.0,114960.0,1.28484615]
[1757688403027,0.002,114970.0,114960.0,2.10424615]
[1757688403228,0.002,114970.0,114960.0,2.10420615]
[1757688403929,0.002,114970.0,114960.0,2.65349606]
[1757688404125,0.0026,114980.0,114970.0,0.1225295]
[1757688404329,0.0026,114980.0,114970.0,0.59261941]
[1757688404531,0.0026,114980.0,114970.0,0.83103609]
[1757688405929,0.0036,114980.0,114970.0,1.06945277]
[1757688406119,0.0036,114980.0,114970.0,1.72786945]
[1757688406325,0.02017419,114990.0,114980.0,0.122522]
[1757688406625,0.02017419,114990.0,114980.0,0.84900578]
[1757688407234,0.02017419,114990.0,114980.0,1.66828578]
[1757688408328,0.02017419,114990.0,114980.0,1.66824578]
[1757688409234,0.02017419,114990.0,114980.0,1.66820578]
[1757688409421,0.02017419,114990.0,114980.0,1.32583914]
[1757688409625,4e-05,114990.0,114980.0,2.14503914]
[1757688410230,4e-05,114990.0,114980.0,1.32583914]
[1757688410432,4e-05,114990.0,114980.0,2.14503914]
[1757688410634,4e-05,114990.0,114980.0,1.32583914]
[1757688410833,4e-05,114990.0,114980.0,2.14499914]
[1757688411231,4e-05,114990.0,114980.0,2.03562259]
[1757688412036,4e-05,114990.0,114980.0,2.03558259]
[1757688412843,4e-05,114990.0,114980.0,1.21646259]
[1757688413039,4e-05,114990.0,114980.0,2.03554259]
[1757688413240,4e-05,114990.0,114980.0,1.21746259]
[1757688413537,4e-05,114990.0,114980.0,2.03654259]
[1757688413739,4e-05,114990.0,114980.0,1.37746259]
[1757688413933,4e-05,114990.0,114980.0,1.21746259]
[1757688414139,4e-05,114990.0,114980.0,2.03750259]
[1757688416942,4e-05,114990.0,114980.0,1.21846259]
[1757688417143,4e-05,114990.0,114980.0,2.03742259]
[1757688417340,4e-05,114990.0,114980.0,1.21846259]
[1757688417641,4e-05,114990.0,114980.0,2.03738259]
[1757688418244,4e-05,114990.0,114980.0,1.21846259]
[1757688418442,4e-05,114990.0,114980.0,2.03734259]
[1757688418941,4e-05,114990.0,114980.0,1.21846259]
[1757688419143,4e-05,114990.0,114980.0,2.03734259]
[1757688419545,4e-05,114990.0,114980.0,1.21846259]
[1757688420047,4e-05,114990.0,114980.0,2.03730259]
[1757688420643,4e-05,114990.0,114980.0,2.03726259]
[1757688420851,0.61562668,115020.0,114990.0,0.086931]
[1757688421035,0.61562668,115020.0,115010.0,0.27508668]
[1757688421036,0.38473,115020.0,115010.0,0.27508668]
[1757688421845,0.02393,115020.0,115010.0,1.33226336]
[1757688422046,0.02393,115020.0,115010.0,0.51350336]
[1757688422245,0.02393,115020.0,115010.0,1.33226336]
[1757688422446,0.02393,115020.0,115010.0,0.51350336]
[1757688422643,0.02593,115020.0,115010.0,1.41914266]
[1757688422944,0.0046,115020.0,115010.0,0.96122266]
[1757688423150,0.0066,115020.0,115010.0,1.77994266]
[1757688423353,0.0066,115020.0,115010.0,0.96122266]
[1757688423745,0.0066,115020.0,115010.0,1.77990266]
[1757688424049,0.0066,115020.0,115010.0,0.96122266]
[1757688424453,0.0066,115020.0,115010.0,1.77990266]
[1757688425050,0.0066,115020.0,115010.0,0.96122266]
[1757688425251,0.0066,115020.0,115010.0,1.84855962]
[1757688425751,0.0066,115020.0,115010.0,1.37172626]
[1757688425952,0.0066,115020.0,115010.0,1.84855962]
[1757688426554,0.0066,115020.0,115010.0,1.37172626]
[1757688426752,0.0066,115020.0,115010.0,1.84855962]
[1757688427653,0.0066,115020.0,115010.0,1.02991962]
[1757688427856,0.0066,115020.0,115010.0,1.84843962]
[1757688428364,0.0066,115020.0,115010.0,1.8571801]
[1757688428663,0.0066,115020.0,115010.0,0.56182674]
[1757688428960,0.0066,115020.0,115010.0,1.7702208]
[1757688430664,0.0066,115020.0,115010.0,1.29338744]
[1757688430860,0.0066,115020.0,115010.0,1.7702208]
[1757688431562,0.02793,115020.0,115010.0,1.7701008]
[1757688432363,0.0066,115020.0,115010.0,1.7701008]
[1757688434466,0.0066,115020.0,115010.0,1.61075324]
[1757688435464,0.0066,115020.0,115010.0,1.71538449]
[1757688437666,0.004,115020.0,115010.0,1.71538449]
[1757688439069,0.004,115020.0,115010.0,1.71530809]
[1757688439964,0.002,115020.0,115010.0,1.87405099]
[1757688440167,4e-05,115050.0,115040.0,0.03667]
[1757688440168,0.02137,115050.0,115040.0,0.03667]
[1757688440368,0.02137,115050.0,115040.0,1.0134129]
[1757688441074,0.02137,115050.0,115040.0,1.1721558]
[1757688441875,0.02737,115050.0,115040.0,1.0134129]
[1757688442070,0.38817,115050.0,115040.0,1.0133329]
[1757688442372,0.38817,115050.0,115040.0,0.1954129]
[1757688442573,0.38817,115050.0,115040.0,1.0133329]
[1757688442970,0.39217,115050.0,115040.0,0.85459]
[1757688443167,0.40509,115050.0,115040.0,1.0133329]
[1757688447278,0.40509,115050.0,115040.0,0.1954129]
[1757688447576,0.40509,115050.0,115040.0,1.0131329]
[1757688449473,0.40509,115050.0,115040.0,1.0130529]
[1757688450071,0.40509,115050.0,115040.0,0.1818529]
[1757688450271,0.8138329,115050.0,115040.0,0.02311]
[1757688450568,0.65509,115050.0,115040.0,0.02311]
[1757688450773,0.8138329,115050.0,115040.0,0.02311]
[1757688451980,0.8138329,115050.0,115040.0,0.1818529]
[1757688454282,0.65509,115050.0,115040.0,0.1818529]
[1757688454479,0.8138329,115050.0,115040.0,0.1818529]
[1757688454679,0.03504,115040.0,115030.0,1.0112529]
[1757688454982,0.39584,115040.0,115030.0,0.9976929]
[1757688455384,0.39584,115040.0,115030.0,1.0109429]
[1757688456279,0.39884,115040.0,115030.0,1.0109429]
[1757688457586,0.40284,115040.0,115030.0,1.0109429]
[1757688458385,0.02912,115040.0,115030.0,1.0109429]
[1757688458789,0.007,115040.0,115030.0,1.5304858]
[1757688459279,0.007,115040.0,115030.0,1.6173903]
[1757688461188,0.007,115040.0,115030.0,1.8673903]
[1757688461578,0.00264,115050.0,115040.0,0.1215769]
[1757688461781,0.00264,115050.0,115040.0,1.02769075]
[1757688461981,0.00264,115050.0,115040.0,0.86769075]
[1757688462185,0.00264,115050.0,115040.0,0.70894785]
[1757688462386,0.00264,115050.0,115040.0,1.18517655]
[1757688462790,0.01164,115050.0,115040.0,1.18517655]
[1757688463991,0.01164,115050.0,115040.0,2.00233655]
[1757688464190,0.01164,115050.0,115040.0,2.00225655]
[1757688464592,0.01164,115050.0,115040.0,1.84351365]
[1757688465795,0.01164,115050.0,115040.0,1.02643365]
[1757688465992,0.01164,115050.0,115040.0,1.84343365]
[1757688467394,0.01164,115050.0,115040.0,1.79329609]
[1757688470594,0.01164,115050.0,115040.0,2.23329609]
[1757688470795,0.38292,115080.0,115070.0,0.03468]
[1757688471095,0.38292,115080.0,115070.0,1.0102229]
[1757688471294,0.02212,115080.0,115070.0,1.0102229]
[1757688471991,0.03312,115080.0,115070.0,1.0102229]
[1757688472893,0.03112,115080.0,115070.0,1.0101429]
[1757688474791,0.02512,115080.0,115070.0,0.1934229]
[1757688474992,0.02312,115080.0,115070.0,1.0110229]
[1757688475601,0.036,115080.0,115070.0,0.1964229]
[1757688475897,0.4447429,115080.0,115070.0,0.9997329]
[1757688476900,0.286,115080.0,115070.0,0.1831729]
[1757688477300,0.286,115080.0,115070.0,0.9996929]
[1757688477499,0.286,115080.0,115070.0,0.9996529]
[1757688478196,0.27212,115080.0,115070.0,1.0132429]
[1757688478597,0.02212,115080.0,115070.0,1.0132429]
[1757688478902,0.02212,115080.0,115070.0,1.1001172]
[1757688479098,0.02212,115080.0,115070.0,1.2588601]
[1757688479298,0.02212,115080.0,115070.0,1.1001172]
[1757688479594,0.02212,115080.0,115070.0,1.0132429]
[1757688479795,0.02212,115080.0,115070.0,1.3740429]
[1757688480298,0.02212,115080.0,115070.0,1.4609172]
[1757688480997,0.02212,115080.0,115070.0,1.3740429]
[1757688482398,0.02042599,115090.0,115070.0,1.6196601]
[1757688482590,0.04149599,115090.0,115080.0,0.3526058]
[1757688482995,0.02042599,115090.0,115080.0,0.8002725]
[1757688483499,0.02142599,115090.0,115080.0,0.8002725]
[1757688484503,0.001,115090.0,115080.0,0.7134058]
[1757688484702,0.001,115090.0,115080.0,1.5295658]
[1757688484904,0.001,115090.0,115080.0,0.7134058]
[1757688485102,0.02107,115090.0,115080.0,1.5295658]
[1757688485299,0.02207,115090.0,115080.0,1.5295658]
[1757688486003,0.02207,115090.0,115080.0,0.7134058]
[1757688486195,0.02207,115090.0,115080.0,1.5294858]
[1757688487502,0.02207,115090.0,115080.0,0.7134058]
[1757688487903,0.02207,115090.0,115080.0,1.5294058]
[1757688489304,0.02207,115090.0,115080.0,1.21192]
[1757688489601,0.02207,115090.0,115080.0,1.5294058]
[1757688490605,0.02207,115090.0,115080.0,0.7134058]
[1757688490805,0.02207,115090.0,115080.0,1.5292458]
[1757688492505,0.001,115090.0,115080.0,1.6879487]
[1757688492801,0.001,115090.0,115080.0,2.1947754]
[1757688492993,0.001,115090.0,115080.0,2.21254957]
[1757688493702,0.001,115090.0,115080.0,2.21754957]
[1757688494193,0.001,115090.0,115080.0,1.40178957]
[1757688494397,4e-05,115100.0,115080.0,1.14492287]
[1757688494600,0.02111,115100.0,115090.0,1.5290858]
[1757688495006,0.02111,115100.0,115090.0,1.5290458]
[1757688495306,0.02111,115100.0,115090.0,1.3703029]
[1757688495504,0.02111,115100.0,115090.0,1.3702629]
[1757688496004,0.02111,115100.0,115090.0,1.3742629]
[1757688496500,0.02111,115100.0,115090.0,1.69116024]
[1757688497905,0.02111,115100.0,115090.0,1.69316024]
[1757688504614,0.02111,115100.0,115090.0,1.33192024]
[1757688507404,0.02111,115100.0,115090.0,0.85628]
[1757688507715,0.02111,115100.0,115090.0,1.33192024]
[1757688515711,0.02111,115100.0,115090.0,0.27894012]
[1757688516017,0.02111,115100.0,115090.0,1.09354012]
[1757688516209,0.02111,115100.0,115090.0,0.85572]
[1757688516409,0.02111,115100.0,115090.0,1.09354012]
[1757688518020,0.03429,115100.0,115090.0,0.85572]
[1757688518220,0.03429,115100.0,115090.0,1.09354012]
[1757688518615,0.03429,115100.0,115090.0,0.85572]
[1757688518814,0.03429,115100.0,115090.0,1.09354012]
[1757688519116,0.03429,115100.0,115090.0,0.27894012]
[1757688519321,0.87073024,115100.0,115090.0,0.006]
[1757688519519,1.68517024,115100.0,115090.0,0.006]
[1757688519714,2.04597024,115100.0,115090.0,0.006]
[1757688520517,1.71935036,115100.0,115090.0,0.006]
[1757688520717,2.29593024,115100.0,115090.0,0.006]
[1757688521120,2.55847535,115100.0,115090.0,0.006]
[1757688521324,0.03605,115090.0,115080.0,0.01759582]
[1757688521525,2.03872294,115090.0,115080.0,0.01759582]
[1757688521718,2.28872294,115090.0,115080.0,0.01759582]
[1757688522322,1.47436294,115090.0,115080.0,0.01759582]
[1757688522527,2.28868294,115090.0,115080.0,0.01759582]
[1757688522722,0.02287,115060.0,115050.0,0.04057266]
[1757688523025,0.85931024,115060.0,115050.0,0.04057266]
[1757688523226,0.85931024,115060.0,115050.0,0.29178278]
[1757688523524,0.62149012,115060.0,115050.0,0.29178278]
[1757688523719,0.62149012,115060.0,115050.0,0.05396266]
[1757688523914,0.62149012,115060.0,115050.0,0.29178278]
[1757688524626,0.62998397,115060.0,115050.0,0.30078278]
[1757688525521,0.62998397,115060.0,115050.0,0.06296266]
[1757688525722,0.62998397,115060.0,115050.0,0.30078278]
[1757688526526,0.86780409,115060.0,115050.0,0.009]
[1757688526922,1.11780409,115060.0,115050.0,0.009]
[1757688527324,1.93204409,115060.0,115050.0,0.009]
[1757688528325,1.11780409,115060.0,115050.0,0.009]
[1757688528527,1.93196409,115060.0,115050.0,0.009]
[1757688528722,1.11780409,115060.0,115050.0,0.009]
[1757688529225,1.93200409,115060.0,115050.0,0.009]
[1757688529624,1.45636385,115060.0,115050.0,0.009]
[1757688529820,1.93200409,115060.0,115050.0,0.009]
[1757688532620,1.11780409,115060.0,115050.0,0.009]
[1757688533132,1.93192409,115060.0,115050.0,0.009]
[1757688534335,1.11780409,115060.0,115050.0,0.009]
[1757688534531,1.93188409,115060.0,115050.0,0.009]
[1757688536828,2.16962421,115060.0,115050.0,0.009]
[1757688537227,1.35562421,115060.0,115050.0,0.009]
[1757688537422,1.45616385,115060.0,115050.0,0.009]
[1757688537732,1.35562421,115060.0,115050.0,0.009]
[1757688538326,2.16958421,115060.0,115050.0,0.009]
[1757688538733,1.93176409,115060.0,115050.0,0.009]
[1757688539233,1.11780409,115060.0,115050.0,0.009]
[1757688539622,1.35562421,115060.0,115050.0,0.009]
[1757688540029,2.16954421,115060.0,115050.0,0.009]
[1757688540235,0.64216385,115060.0,115050.0,0.009]
[1757688540433,1.11780409,115060.0,115050.0,0.009]
[1757688540635,1.93172409,115060.0,115050.0,0.009]
[1757688541333,1.93168409,115060.0,115050.0,0.009]
[1757688541727,1.45604385,115060.0,115050.0,0.009]
[1757688541927,1.93168409,115060.0,115050.0,0.009]
[1757688542136,1.93168409,115060.0,115050.0,0.004]
[1757688542341,0.64216385,115060.0,115050.0,0.005]
[1757688542525,0.64216385,115060.0,115050.0,0.26414012]
[1757688542526,0.62998397,115060.0,115050.0,0.26414012]
[1757688542727,0.39216385,115060.0,115050.0,0.27748012]
[1757688542932,1.43533012,115060.0,115050.0,0.52748012]
[1757688543133,1.43533012,115060.0,115050.0,0.52348012]
[1757688543332,1.43533012,115060.0,115050.0,0.52548012]
[1757688543534,1.43533012,115060.0,115050.0,0.28766]
[1757688543840,1.43533012,115060.0,115050.0,0.52548012]
[1757688544232,0.38367,115060.0,115050.0,0.76330024]
[1757688544428,0.3634,115070.0,115060.0,0.121541]
[1757688544742,0.0026,115070.0,115060.0,0.84718124]
[1757688545238,0.0026,115070.0,115060.0,1.20798124]
[1757688546742,0.0026,115070.0,115060.0,1.12110024]
[1757688547040,0.0026,115070.0,115060.0,1.12956671]
[1757688547236,0.0026,115070.0,115060.0,1.21644771]
[1757688547540,0.0026,115070.0,115060.0,1.2860732]
[1757688547940,0.0026,115070.0,115060.0,1.52389332]
[1757688548139,0.0026,115070.0,115060.0,2.33753332]
[1757688548441,0.0026,115070.0,115060.0,2.0997132]
[1757688548941,0.0026,115070.0,115060.0,1.2860732]
[1757688549330,0.0026,115070.0,115060.0,2.0996732]
[1757688549846,0.0026,115070.0,115060.0,1.2860732]
[1757688550233,0.0026,115070.0,115060.0,2.0996332]
[1757688550434,0.0026,115070.0,115060.0,1.52389332]
[1757688550932,0.0026,115070.0,115060.0,1.2860732]
[1757688551132,0.0026,115070.0,115060.0,2.0995532]
[1757688551741,0.0026,115070.0,115060.0,1.1991922]
[1757688554339,0.0026,115070.0,115060.0,2.0125522]
[1757688554537,0.0026,115070.0,115060.0,2.0125122]
[1757688554943,0.0026,115070.0,115060.0,1.7625122]
[1757688555141,0.02517,115070.0,115060.0,1.7625122]
[1757688555439,0.02517,115070.0,115060.0,1.7624722]
[1757688556151,0.0026,115070.0,115060.0,1.7624722]
[1757688556441,0.0026,115070.0,115060.0,1.7624322]
[1757688558448,0.0026,115070.0,115060.0,1.60401042]
[1757688558749,0.0026,115070.0,115060.0,1.60389042]
[1757688559753,0.0026,115070.0,115060.0,0.79077042]
[1757688560251,0.0026,115070.0,115060.0,1.60385042]
[1757688560754,0.0026,115070.0,115060.0,1.69073142]
[1757688561054,0.0026,115070.0,115060.0,0.79077042]
[1757688561254,0.0026,115070.0,115060.0,1.60385042]
[1757688561756,0.0026,115070.0,115060.0,0.79077042]
[1757688561959,1.68480193,115090.0,115080.0,0.01266]
[1757688562152,1.71566924,115090.0,115080.0,0.19392923]
[1757688562459,1.55706001,115090.0,115080.0,0.19392923]
[1757688562758,1.70715193,115090.0,115080.0,0.19392923]
[1757688563258,1.5485427,115090.0,115080.0,0.19392923]
[1757688563649,1.70715193,115090.0,115080.0,0.19392923]
[1757688564258,1.70815193,115090.0,115080.0,0.19392923]
[1757688564957,1.71015193,115090.0,115080.0,0.19392923]
[1757688565255,1.71175193,115090.0,115080.0,0.19392923]
[1757688565960,1.71175193,115090.0,115080.0,0.03532]
[1757688566154,1.5531427,115090.0,115080.0,0.03532]
[1757688566462,1.71075193,115090.0,115080.0,0.03532]
[1757688566661,1.7193343,115090.0,115080.0,0.03532]
[1757688566964,1.71075193,115090.0,115080.0,0.03532]
[1757688567366,1.5521427,115090.0,115080.0,0.03532]
[1757688567567,1.71075193,115090.0,115080.0,0.03532]
[1757688567962,1.71075193,115090.0,115080.0,0.19392923]
[1757688568261,0.7386227,115090.0,115080.0,0.19392923]
[1757688568468,0.3778227,115090.0,115080.0,0.35253846]
[1757688568768,0.3778227,115090.0,115080.0,0.19392923]
[1757688569969,0.3778227,115090.0,115080.0,0.35253846]
[1757688570166,0.3778227,115090.0,115080.0,0.19392923]
[1757688570863,0.3554727,115090.0,115080.0,0.71333846]
[1757688571570,0.3778227,115090.0,115080.0,0.71333846]
[1757688572176,0.3778227,115090.0,115080.0,0.71433846]
[1757688572471,0.3768227,115090.0,115080.0,0.71433846]
[1757688576073,0.3544727,115090.0,115080.0,0.71433846]
[1757688576274,0.3544727,115090.0,115080.0,1.05120436]
[1757688576974,0.02306572,115090.0,115080.0,1.05120436]
[1757688578374,0.02306572,115090.0,115080.0,0.96433846]
[1757688578773,0.02306572,115090.0,115080.0,1.77661846]
[1757688579274,0.02306572,115090.0,115080.0,1.52661846]
[1757688580168,0.02306572,115090.0,115080.0,1.61348436]
[1757688580370,0.02306572,115090.0,115080.0,1.86348436]
[1757688581979,0.02306572,115090.0,115080.0,1.82816436]
[1757688582168,0.0026,115090.0,115080.0,1.98677359]
[1757688582376,4e-05,115100.0,115090.0,0.0868583]
[1757688582682,4e-05,115100.0,115090.0,0.67801846]
[1757688582881,4e-05,115100.0,115090.0,0.51940923]
[1757688583579,4e-05,115100.0,115090.0,0.60626753]
[1757688583878,0.00104,115100.0,115090.0,0.60626753]
[1757688584077,0.00104,115100.0,115090.0,0.51940923]
[1757688585773,0.00104,115100.0,115090.0,0.52140923]
[1757688585973,4e-05,115100.0,115090.0,1.33336923]
[1757688586178,4e-05,115100.0,115090.0,1.33436923]
[1757688586369,4e-05,115100.0,115090.0,0.52240923]
[1757688586568,4e-05,115100.0,115090.0,1.33436923]
[1757688587269,4e-05,115100.0,115090.0,1.33432923]
[1757688588569,4e-05,115100.0,115090.0,1.33428923]
[1757688589776,4e-05,115100.0,115090.0,0.52240923]
[1757688590075,4e-05,115100.0,115090.0,1.33424923]
[1757688591277,4e-05,115100.0,115090.0,1.35186096]
[1757688591470,0.51944923,115100.0,115090.0,0.83237173]
[1757688591671,0.15864923,115100.0,115090.0,1.35178096]
[1757688591978,4e-05,115100.0,115090.0,1.35174096]
[1757688592477,4e-05,115100.0,115090.0,0.99090096]
[1757688593176,4e-05,115100.0,115090.0,0.17922096]
[1757688593477,4e-05,115100.0,115090.0,0.99086096]
[1757688594169,4e-05,115100.0,115090.0,0.38141173]
[1757688594364,4e-05,115100.0,115090.0,1.35166096]
[1757688600786,4e-05,115100.0,115090.0,1.59712849]
[1757688601081,4e-05,115100.0,115090.0,1.51027019]
[1757688601478,4e-05,115100.0,115090.0,1.84712849]
[1757688601678,0.38138226,115120.0,115100.0,0.0868486]
[1757688601880,0.02058226,115120.0,115110.0,0.15860923]
[1757688602085,0.02058226,115120.0,115110.0,0.97877754]
[1757688602680,0.02058226,115120.0,115110.0,1.33957754]
[1757688602983,0.02058226,115120.0,115110.0,1.18096831]
[1757688603280,0.38138226,115120.0,115110.0,0.81128]
[1757688603470,0.38138226,115120.0,115110.0,0.96988923]
[1757688603676,0.54099149,115120.0,115110.0,0.96988923]
[1757688604783,0.54099149,115120.0,115110.0,0.81128]
[1757688604977,0.54099149,115120.0,115110.0,0.15860923]
[1757688606083,0.54099149,115120.0,115100.0,1.33925396]
[1757688606771,0.54099149,115120.0,115100.0,0.52817396]
[1757688607573,0.54099149,115120.0,115100.0,1.33917396]
[1757688607788,0.54099149,115120.0,115100.0,1.40733086]
[1757688608483,0.54099149,115120.0,115110.0,0.15860923]
[1757688609291,0.38238226,115120.0,115110.0,0.15860923]
[1757688609484,0.54099149,115120.0,115100.0,0.58756613]
[1757688609685,0.54099149,115120.0,115100.0,1.39848613]
[1757688611291,0.38238226,115120.0,115100.0,1.39848613]
[1757688611486,0.38238226,115120.0,115110.0,0.15860923]
[1757688611789,0.02158226,115120.0,115110.0,0.15860923]
[1757688612692,0.02158226,115120.0,115100.0,1.24848888]
[1757688612897,0.02158226,115120.0,115110.0,0.15860923]
[1757688613586,0.02158226,115120.0,115110.0,0.67801846]
[1757688613793,0.02158226,115120.0,115110.0,0.76486166]
[1757688613997,0.02158226,115120.0,115110.0,0.51940923]
[1757688615585,0.02158226,115120.0,115110.0,0.60625243]
[1757688615882,0.001,115120.0,115110.0,0.76486166]
[1757688616395,0.001,115120.0,115110.0,1.01486166]
[1757688620292,0.001,115120.0,115110.0,1.12423821]
[1757688620492,0.001,115120.0,115110.0,1.28231583]
[1757688620694,0.001,115120.0,115110.0,2.09271583]
[1757688620888,0.001,115120.0,115110.0,1.28231583]
[1757688621091,0.001,115120.0,115110.0,2.09267583]
[1757688621290,0.001,115120.0,115110.0,1.28231583]
[1757688621489,0.001,115120.0,115110.0,2.09267583]
[1757688622699,0.001,115120.0,115110.0,1.98321928]
[1757688625699,0.001,115120.0,115110.0,1.17293928]
[1757688625898,0.001,115120.0,115110.0,1.89621608]
[1757688626599,0.001,115120.0,115110.0,1.08609608]
[1757688626791,0.001,115120.0,115110.0,1.89621608]
[1757688627101,0.001,115120.0,115110.0,1.89617608]
[1757688629396,0.001,115120.0,115110.0,1.08609608]
[1757688629599,0.001,115120.0,115110.0,0.3608]
[1757688629901,0.23864804,115120.0,115110.0,0.61107804]
[1757688630101,0.23864804,115120.0,115110.0,1.42103804]
[1757688631307,0.001,115120.0,115110.0,1.42103804]